bitfinex-derivatives/quotes_ETHF0:USTF0_20240915
["timestamp","ask_amount","ask_price","bid_price","bid_amount"]
[1726376529705,4.16224564,2417.9,2417.8,18.28912859]
[1726376529894,4.16224564,2417.9,2417.8,19.91563527]
[1726376530902,4.16224564,2417.9,2417.8,18.9353182]
[1726376531198,3.08111748,2417.9,2417.8,18.9353182]
[1726376531394,4.16224564,2417.9,2417.8,18.9353182]
[1726376531804,4.16224564,2417.9,2417.8,17.75161227]
[1726376532195,3.08111748,2417.9,2417.8,18.28881599]
[1726376532694,3.08111748,2417.9,2417.8,17.10536927]
[1726376532992,3.08111748,2417.9,2417.8,17.10532869]
[1726376533191,3.08111748,2417.9,2417.8,18.28871335]
[1726376533796,3.08111748,2417.9,2417.8,18.93489194]
[1726376533990,3.08111748,2417.9,2417.8,18.28871335]
[1726376534194,1.71810292,2418.1,2418.0,0.41342]
[1726376534395,1.71810292,2418.1,2418.0,8.61024606]
[1726376534590,1.71810292,2418.1,2418.0,14.1096709]
[1726376534796,1.71810292,2418.1,2418.0,13.12268715]
[1726376535198,62.28139369,2418.2,2418.1,0.4134]
[1726376535397,62.28139369,2418.2,2418.1,10.77723144]
[1726376535599,62.28139369,2418.2,2418.1,15.6567983]
[1726376536412,62.28139369,2418.2,2418.1,11.67400406]
[1726376536707,62.28139369,2418.2,2418.1,15.65585478]
[1726376537197,52.92139369,2418.2,2418.1,15.65585478]
[1726376537399,52.92139369,2418.2,2418.1,17.28884241]
[1726376538299,51.20139369,2418.2,2418.1,16.30192199]
[1726376539006,49.04041,2418.2,2418.1,22.04521012]
[1726376539305,49.04041,2418.2,2418.1,19.88026779]
[1726376539505,49.04041,2418.2,2418.1,19.88003374]
[1726376539904,39.02241,2418.2,2418.1,30.01523374]
[1726376540305,39.02241,2418.2,2418.1,27.62966987]
[1726376540607,39.02241,2418.2,2418.1,26.98365393]
[1726376541205,39.02241,2418.2,2418.1,27.81125508]
[1726376541206,34.63325472,2418.2,2418.1,27.81125508]
[1726376541401,31.78180243,2418.2,2418.1,27.81125508]
[1726376541702,30.56904244,2418.2,2418.1,28.1355176]
[1726376541906,21.68670394,2418.2,2418.1,28.1355176]
[1726376542100,18.83545394,2418.2,2418.1,28.1355176]
[1726376542302,14.37151394,2418.2,2418.1,28.1355176]
[1726376542498,3.7496037,2418.2,2418.1,37.8338171]
[1726376542702,0.096,2418.8,2418.7,0.4133]
[1726376542899,2.54018369,2418.9,2418.8,0.41328]
[1726376543098,5.62130117,2418.9,2418.8,0.90664166]
[1726376543312,5.62130117,2418.9,2418.8,6.30719892]
[1726376543498,5.62130117,2418.9,2418.8,9.20071033]
[1726376543703,5.62130117,2418.9,2418.8,8.68401179]
[1726376544112,3.46031748,2418.9,2418.8,8.68401179]
[1726376544509,0.7847,2419.0,2418.9,0.41326]
[1726376544813,3.86581748,2419.0,2418.9,9.3193182]
[1726376545215,3.86581748,2419.0,2418.9,8.2859213]
[1726376546202,3.86581748,2419.0,2418.9,6.3558465]
[1726376546402,3.86581748,2419.0,2418.9,6.93203008]
[1726376547014,3.86581748,2419.0,2418.9,8.85157908]
[1726376547209,3.86581748,2419.0,2418.9,8.27539726]
[1726376547410,3.86581748,2419.0,2418.9,9.61876266]
[1726376549206,3.86581748,2419.0,2418.9,8.79207626]
[1726376549907,3.86581748,2419.0,2418.9,8.27539726]
[1726376550210,3.86581748,2419.0,2418.9,7.69921368]
[1726376550418,3.86581748,2419.0,2418.9,6.87254139]
[1726376552108,3.86581748,2419.0,2418.9,10.08034139]
[1726376553106,3.86581748,2419.0,2418.9,6.87254139]
[1726376553306,3.86581748,2419.0,2418.9,9.5636465]
[1726376557418,3.86581748,2419.0,2418.9,7.9603865]
[1726376557622,3.86581748,2419.0,2418.9,4.1314865]
[1726376557819,3.86581748,2419.0,2418.9,5.3214865]
[1726376558718,3.86581748,2419.0,2418.9,4.1314865]
[1726376560119,3.86581748,2419.0,2418.6,4.81111]
[1726376560327,1.19795,2419.0,2418.7,0.096]
[1726376560620,3.08111748,2418.8,2418.7,2.93410781]
[1726376560923,3.08111748,2418.8,2418.6,1.19]
[1726376561226,3.08111748,2418.7,2418.6,1.19]
[1726376561522,3.08111748,2418.7,2418.5,1.19]
[1726376561717,0.41328,2418.8,2418.5,1.19]
[1726376561920,3.08111748,2418.6,2418.5,5.83906292]
[1726376562116,3.08111748,2418.6,2418.5,1.19]
[1726376563723,3.08111748,2418.6,2418.3,1.19]
[1726376563928,3.08111748,2418.4,2418.3,1.19]
[1726376564427,3.08111748,2418.4,2418.3,5.91542548]
[1726376566726,3.08111748,2418.4,2418.3,6.32878548]
[1726376567619,3.08111748,2418.4,2418.3,5.91542548]
[1726376569936,3.08111748,2418.4,2418.3,9.64006894]
[1726376570233,3.08111748,2418.4,2418.3,10.01966894]
[1726376573333,3.08111748,2418.4,2418.3,10.84662196]
[1726376573540,3.08111748,2418.4,2418.3,10.01966894]
[1726376574038,3.08111748,2418.4,2418.3,10.43302894]
[1726376574246,3.08111748,2418.4,2418.3,11.25999855]
[1726376574734,3.08111748,2418.4,2418.3,11.83632278]
[1726376574936,3.08111748,2418.4,2418.3,11.83632312]
[1726376576141,3.08111748,2418.4,2418.3,11.83633413]
[1726376577733,3.08111748,2418.4,2418.3,11.83634586]
[1726376580544,3.08111748,2418.4,2418.3,8.62854586]
[1726376580851,3.08111748,2418.4,2418.3,10.49253279]
[1726376581039,3.08111748,2418.4,2418.3,11.83638879]
[1726376583250,3.08111748,2418.4,2418.3,12.87009774]
[1726376583553,3.08111748,2418.4,2418.3,9.91618548]
[1726376583853,3.08111748,2418.4,2418.3,11.83635621]
[1726376584043,3.08111748,2418.4,2418.3,12.87004988]
[1726376584249,3.08111748,2418.4,2418.3,12.87005313]
[1726376584449,3.08111748,2418.4,2418.3,10.64635621]
[1726376585655,3.08111748,2418.4,2418.3,11.6800507]
[1726376585853,3.08111748,2418.4,2418.3,10.64635621]
[1726376586049,3.08111748,2418.4,2418.3,11.83635621]
[1726376587160,3.08111748,2418.4,2418.3,11.83634884]
[1726376587659,3.08111748,2418.4,2418.3,11.83633947]
[1726376588653,3.08111748,2418.4,2418.3,12.87001867]
[1726376590358,3.08111748,2418.4,2418.3,13.79214904]
[1726376590559,3.08111748,2418.4,2418.3,9.91618548]
[1726376590755,3.08111748,2418.4,2418.3,11.41463409]
[1726376590956,3.08111748,2418.4,2418.3,10.49251187]
[1726376591256,3.08111748,2418.4,2418.3,13.7920841]
[1726376593862,3.08111748,2418.4,2418.3,12.29362185]
[1726376594058,3.08111748,2418.4,2418.3,13.79214107]
[1726376596169,3.08111748,2418.4,2418.3,14.87230484]
[1726376596468,3.08111748,2418.4,2418.3,13.79214107]
[1726376597269,3.08111748,2418.4,2418.3,14.87230484]
[1726376597466,3.08111748,2418.4,2418.3,13.9501697]
[1726376597668,3.08111748,2418.4,2418.3,14.87229659]
[1726376597873,3.08111748,2418.4,2418.3,13.37384039]
[1726376598373,3.08111748,2418.4,2418.3,15.36358305]
[1726376599266,3.08111748,2418.4,2418.3,17.03308288]
[1726376599974,3.08111748,2418.4,2418.3,18.22572862]
[1726376600163,3.08111748,2418.4,2418.3,16.51624422]
[1726376600365,3.08111748,2418.4,2418.3,18.22596993]
[1726376600676,3.08111748,2418.4,2418.3,18.22600053]
[1726376600966,3.08111748,2418.4,2418.3,14.96890637]
[1726376601168,3.08111748,2418.4,2418.3,18.24836627]
[1726376601367,3.08111748,2418.4,2418.3,19.55129323]
[1726376601574,3.08111748,2418.4,2418.3,19.03446377]
[1726376602067,3.08111748,2418.4,2418.3,19.03446692]
[1726376602273,3.08111748,2418.4,2418.3,19.03980835]
[1726376602577,3.08111748,2418.4,2418.3,19.03985834]
[1726376602970,3.08111748,2418.4,2418.3,17.41503485]
[1726376603369,3.08111748,2418.4,2418.3,19.5753624]
[1726376603674,3.08111748,2418.4,2418.3,17.41503485]
[1726376604166,3.08111748,2418.4,2418.3,19.5753624]
[1726376604368,3.08111748,2418.4,2418.3,15.8750656]
[1726376604678,3.08111748,2418.4,2418.3,20.78604089]
[1726376604870,2.49771636,2418.7,2418.5,0.41332]
[1726376605076,2.40171636,2418.7,2418.6,12.71243061]
[1726376605375,2.40171636,2418.7,2418.6,16.63360914]
[1726376605673,5.48283384,2418.7,2418.6,17.71749405]
[1726376605873,5.48283384,2418.7,2418.6,18.15581019]
[1726376606074,5.48283384,2418.7,2418.6,18.13076669]
[1726376606271,5.48283384,2418.7,2418.6,18.25928963]
[1726376606779,5.48283384,2418.7,2418.6,17.74250019]
[1726376607474,5.48283384,2418.7,2418.6,17.71754708]
[1726376607861,5.48283384,2418.7,2418.6,17.7175368]
[1726376608370,5.48283384,2418.7,2418.6,13.32486763]
[1726376608676,5.48283384,2418.7,2418.6,17.71726176]
[1726376609471,5.48283384,2418.7,2418.6,16.52299338]
[1726376609665,5.48283384,2418.7,2418.6,16.12979338]
[1726376611168,5.48283384,2418.7,2418.6,10.09354263]
[1726376611362,5.48283384,2418.7,2418.6,13.23578485]
[1726376611573,5.48283384,2418.7,2418.6,16.12988731]
[1726376613171,5.48283384,2418.7,2418.6,17.32444918]
[1726376613677,5.48283384,2418.7,2418.6,16.12988731]
[1726376614279,5.4867221,2418.7,2418.6,17.32453578]
[1726376614474,5.4867221,2418.7,2418.6,13.4789328]
[1726376614677,5.4867221,2418.7,2418.6,17.32451393]
[1726376615281,3.86451748,2418.7,2418.6,14.67356009]
[1726376615477,3.86451748,2418.7,2418.6,17.3245244]
[1726376618080,3.86451748,2418.7,2418.6,12.93205339]
[1726376618385,3.86451748,2418.7,2418.6,14.43042778]
[1726376618576,5.48692832,2418.7,2418.6,17.86627686]
[1726376618888,5.48692832,2418.7,2418.6,21.54640697]
[1726376619079,5.48692832,2418.7,2418.6,21.02960596]
[1726376619275,5.48692832,2418.7,2418.6,17.55191343]
[1726376619478,5.48692832,2418.7,2418.6,16.9235763]
[1726376619680,5.48692832,2418.7,2418.6,17.86640027]
[1726376619889,5.48692832,2418.7,2418.6,21.02972053]
[1726376620082,5.48692832,2418.7,2418.6,21.02971879]
[1726376620390,5.48692832,2418.7,2418.6,17.34956161]
[1726376620707,5.48692832,2418.7,2418.6,14.14176161]
[1726376621079,5.48692832,2418.7,2418.6,14.6585675]
[1726376621486,5.48692832,2418.7,2418.6,11.51634305]
[1726376621683,5.48692832,2418.7,2418.6,10.95822105]
[1726376621883,3.86451748,2418.7,2418.6,11.2230915]
[1726376622087,5.48688489,2418.7,2418.6,14.11719143]
[1726376622291,5.48687423,2418.7,2418.6,16.24071913]
[1726376622495,3.86451748,2418.7,2418.6,17.32500243]
[1726376622790,5.48688017,2418.7,2418.6,17.32500243]
[1726376623385,5.4869102,2418.7,2418.6,17.32500243]
[1726376623689,5.48691058,2418.7,2418.6,17.32500243]
[1726376624090,5.48691058,2418.7,2418.6,17.324996]
[1726376624091,3.86451748,2418.7,2418.6,17.324996]
[1726376624489,5.48692394,2418.7,2418.6,13.0329127]
[1726376624693,3.86451748,2418.7,2418.6,17.32499605]
[1726376624897,3.86451748,2418.7,2418.6,14.18274357]
[1726376625092,3.86451748,2418.7,2418.6,13.9396132]
[1726376625295,3.86451748,2418.7,2418.6,14.43090088]
[1726376625591,3.86451748,2418.7,2418.6,17.32500306]
[1726376625793,5.4869468,2418.7,2418.6,13.03291971]
[1726376625992,3.86451748,2418.7,2418.6,14.11721724]
[1726376626291,3.86451748,2418.7,2418.6,16.24071971]
[1726376626592,5.48693982,2418.7,2418.6,17.86641767]
[1726376627186,5.48693982,2418.7,2418.6,17.86640747]
[1726376627386,3.86451748,2418.7,2418.6,17.32500933]
[1726376628088,3.86451748,2418.7,2418.6,17.73831933]
[1726376628391,5.4869721,2418.7,2418.6,18.54896846]
[1726376628605,5.4869721,2418.7,2418.6,18.13565846]
[1726376628895,5.4869721,2418.7,2418.6,18.1357073]
[1726376629095,5.4869721,2418.7,2418.6,15.75842546]
[1726376629290,5.4869721,2418.7,2418.6,18.13570336]
[1726376630590,5.4869721,2418.7,2418.6,14.92790336]
[1726376630791,5.4869721,2418.7,2418.6,18.13570336]
[1726376632097,5.4869721,2418.7,2418.6,18.13570313]
[1726376633597,5.4869721,2418.7,2418.6,18.13577817]
[1726376634394,5.4869721,2418.7,2418.6,18.54908817]
[1726376634694,5.0909721,2418.7,2418.6,18.54908817]
[1726376635607,5.0909721,2418.7,2418.6,18.54898508]
[1726376638202,5.0909721,2418.7,2418.6,18.54900684]
[1726376638993,5.0909721,2418.7,2418.6,14.62075525]
[1726376639300,5.0909721,2418.7,2418.6,16.99862673]
[1726376639490,5.0909721,2418.7,2418.6,18.54900433]
[1726376639696,5.0909721,2418.7,2418.6,18.47367312]
[1726376639996,5.0909721,2418.7,2418.6,17.95688148]
[1726376640199,3.46851748,2418.7,2418.6,17.95688148]
[1726376640402,5.0909721,2418.7,2418.6,16.9232982]
[1726376640609,4.7035721,2418.7,2418.6,16.9232982]
[1726376641099,1.71845462,2418.9,2418.6,23.22734229]
[1726376641289,3.17711748,2418.9,2418.8,1.60328]
[1726376641492,2.55758369,2419.1,2418.8,13.89422138]
[1726376641493,2.01905462,2419.1,2418.8,13.89422138]
[1726376641694,3.08111748,2419.0,2418.9,11.14505409]
[1726376641901,3.08111748,2419.0,2418.9,13.94737745]
[1726376642102,3.08111748,2419.0,2418.9,17.3148173]
[1726376642296,3.08111748,2419.0,2418.9,18.34821625]
[1726376642607,3.08111748,2419.0,2418.9,23.04874876]
[1726376642902,3.08111748,2419.0,2418.9,22.06633892]
[1726376643409,3.08111748,2419.0,2418.9,19.67727556]
[1726376643602,3.08111748,2419.0,2418.9,22.06440188]
[1726376643792,3.08111748,2419.0,2418.9,19.67727556]
[1726376644102,3.08111748,2419.0,2418.9,21.4185373]
[1726376644295,3.08111748,2419.0,2418.9,19.03141682]
[1726376645096,3.08111748,2419.0,2418.9,17.75425222]
[1726376645302,3.08111748,2419.0,2418.9,16.65115346]
[1726376645501,3.08111748,2419.0,2418.9,14.484086]
[1726376645903,3.08111748,2419.0,2418.9,16.86080128]
[1726376646306,3.08111748,2419.0,2418.9,16.85926801]
[1726376647113,3.08111748,2419.0,2418.9,17.19081128]
[1726376647504,0.096,2419.2,2419.1,0.41323]
[1726376647706,3.08111748,2419.2,2419.1,9.91239689]
[1726376647908,3.08111748,2419.2,2419.1,15.08880973]
[1726376648307,3.08111748,2419.2,2419.1,15.08838178]
[1726376648504,3.08111748,2419.2,2419.1,13.89579758]
[1726376649109,3.08111748,2419.2,2419.1,10.5122775]
[1726376649298,3.08111748,2419.2,2419.1,12.19470106]
[1726376649605,0.3966,2419.3,2419.2,0.41321]
[1726376649797,3.47771748,2419.3,2419.2,5.11904207]
[1726376650006,3.47771748,2419.3,2419.2,9.51739682]
[1726376650215,3.47771748,2419.3,2419.2,11.06738298]
[1726376650509,3.08111748,2419.3,2419.2,11.89404227]
[1726376652407,0.096,2419.5,2419.2,21.61443227]
[1726376652610,2.03095462,2419.6,2419.4,1.60317]
[1726376652611,0.8078,2419.6,2419.4,1.60317]
[1726376652811,3.88891748,2419.6,2419.5,5.12728752]
[1726376653012,3.88891748,2419.6,2419.5,10.6413345]
[1726376653213,3.88891748,2419.6,2419.5,9.60807702]
[1726376654015,3.88891748,2419.6,2419.5,10.64129257]
[1726376654207,3.88891748,2419.6,2419.5,9.60807702]
[1726376655406,3.88891748,2419.6,2419.5,9.03191084]
[1726376656716,3.88891748,2419.6,2419.5,9.44507084]
[1726376658217,3.88891748,2419.6,2419.5,8.61841155]
[1726376659421,3.88891748,2419.6,2419.5,8.1017495]
[1726376659811,3.88891748,2419.6,2419.5,8.61836729]
[1726376660320,3.88891748,2419.6,2419.5,9.13498498]
[1726376660814,3.88891748,2419.6,2419.5,8.61836719]
[1726376664924,0.8078,2419.6,2419.5,5.41056719]
[1726376665114,3.88891748,2419.6,2419.5,5.41056719]
[1726376665319,3.88891748,2419.6,2419.5,8.61836719]
[1726376665822,3.88891748,2419.6,2419.5,5.41056719]
[1726376666219,3.88891748,2419.6,2419.5,8.61836719]
[1726376666522,3.88891748,2419.6,2419.5,8.1017495]
[1726376666827,3.88891748,2419.6,2419.5,4.99740804]
[1726376667033,3.88891748,2419.6,2419.5,8.20520804]
[1726376669528,3.88891748,2419.6,2419.5,8.61836804]
[1726376670333,3.88891748,2419.6,2419.5,8.1017495]
[1726376670533,3.88891748,2419.6,2419.5,8.6183758]
[1726376671027,3.88891748,2419.6,2419.5,8.2052158]
[1726376671626,3.88891748,2419.6,2419.5,8.6183758]
[1726376673230,3.88891748,2419.6,2419.5,8.2052158]
[1726376673619,3.88891748,2419.6,2419.5,7.6885895]
[1726376674023,3.88891748,2419.6,2419.5,8.20521622]
[1726376674222,0.8078,2419.6,2419.5,8.61837622]
[1726376674428,3.88891748,2419.6,2419.5,8.61837622]
[1726376674826,3.88891748,2419.6,2419.5,8.20521622]
[1726376675438,3.88891748,2419.6,2419.5,4.99741622]
[1726376675439,4.96809244,2419.6,2419.5,4.99741622]
[1726376678344,3.88891748,2419.6,2419.5,4.99741622]
[1726376678547,5.5113721,2419.6,2419.5,4.99741622]
[1726376678856,4.96831551,2419.6,2419.5,4.99741622]
[1726376679147,4.96831551,2419.6,2419.5,5.82407685]
[1726376679449,4.96831551,2419.6,2419.5,4.99741622]
[1726376679450,5.5113721,2419.6,2419.5,4.99741622]
[1726376680354,5.5113721,2419.6,2419.5,4.4807895]
[1726376680853,5.5113721,2419.6,2419.5,6.23729806]
[1726376681051,5.5113721,2419.6,2419.5,4.8939495]
[1726376681250,5.5113721,2419.6,2419.5,6.2372727]
[1726376682345,5.5113721,2419.6,2419.5,6.81343794]
[1726376682540,3.88891748,2419.6,2419.5,6.81343794]
[1726376683250,6.04990117,2419.6,2419.5,6.81343794]
[1726376684246,6.04990117,2419.6,2419.5,7.84676361]
[1726376685455,6.04990117,2419.6,2419.5,8.76863131]
[1726376687155,6.04990117,2419.6,2419.5,4.8939495]
[1726376687454,6.04990117,2419.6,2419.5,6.90864695]
[1726376687751,6.04990117,2419.6,2419.5,8.76863476]
[1726376689556,6.05259015,2419.6,2419.5,8.76863476]
[1726376690349,3.88891748,2419.6,2419.5,8.19246323]
[1726376690555,3.88891748,2419.6,2419.5,6.39197629]
[1726376690760,3.88891748,2419.6,2419.5,7.27058699]
[1726376690953,3.88891748,2419.6,2419.5,8.76861391]
[1726376691557,3.88891748,2419.6,2419.5,11.14525175]
[1726376693854,3.88891748,2419.6,2419.5,10.73209175]
[1726376694058,6.58971569,2419.6,2419.5,10.73209175]
[1726376694259,3.88891748,2419.6,2419.5,10.73209175]
[1726376694961,6.58971569,2419.6,2419.5,10.73209175]
[1726376697165,6.58971569,2419.6,2419.5,6.85742699]
[1726376697458,6.58971569,2419.6,2419.5,7.43359446]
[1726376697658,6.58971569,2419.6,2419.5,9.18212384]
[1726376697860,6.58971569,2419.6,2419.5,10.73211402]
[1726376698257,3.88891748,2419.6,2419.5,10.73211402]
[1726376698561,6.58971569,2419.6,2419.5,10.73211402]
[1726376698755,3.88891748,2419.6,2419.5,10.73211402]
[1726376699064,6.58971569,2419.6,2419.5,10.73211402]
[1726376699255,3.88891748,2419.6,2419.5,10.73211402]
[1726376699453,6.58971569,2419.6,2419.5,10.73211402]
[1726376699657,3.88891748,2419.6,2419.5,11.22143606]
[1726376699860,3.88891748,2419.6,2419.5,11.22143631]
[1726376700164,3.88891748,2419.6,2419.5,11.22144059]
[1726376700364,3.88891748,2419.6,2419.5,11.21960524]
[1726376700558,3.88891748,2419.6,2419.5,9.18212384]
[1726376700760,6.58971569,2419.6,2419.5,8.84295495]
[1726376701058,6.58971569,2419.6,2419.5,7.77929494]
[1726376701258,6.58971569,2419.6,2419.5,7.75808169]
[1726376701463,6.58971569,2419.6,2419.5,11.13770739]
[1726376701464,3.48041748,2419.6,2419.5,11.13770739]
[1726376701661,3.48041748,2419.6,2419.5,12.28999117]
[1726376701855,3.48041748,2419.6,2419.5,13.83997871]
[1726376702263,3.48041748,2419.6,2419.5,15.1832888]
[1726376703063,3.48041748,2419.6,2419.5,14.7701288]
[1726376706557,5.64580886,2419.6,2419.5,14.7701288]
[1726376706761,5.64580886,2419.6,2419.5,14.28265128]
[1726376706762,3.48041748,2419.6,2419.5,14.28265128]
[1726376706962,3.48041748,2419.6,2419.5,14.77006824]
[1726376707161,3.48041748,2419.6,2419.5,14.76994466]
[1726376710467,3.48041748,2419.6,2419.5,8.73905366]
[1726376710673,6.18121569,2419.6,2419.5,11.87678404]
[1726376710863,3.48041748,2419.6,2419.5,11.87678404]
[1726376711169,3.48041748,2419.6,2419.5,14.76993982]
[1726376711472,3.48041748,2419.6,2419.5,12.39332747]
[1726376712371,3.48041748,2419.6,2419.5,13.58835206]
[1726376712565,3.48041748,2419.6,2419.5,12.39332747]
[1726376712760,6.18121569,2419.6,2419.5,12.39332747]
[1726376713373,3.48041748,2419.6,2419.5,12.39332747]
[1726376713975,6.18121569,2419.6,2419.5,12.39332747]
[1726376714166,6.18121569,2419.6,2419.5,9.50024818]
[1726376714367,6.18121569,2419.6,2419.5,12.3935088]
[1726376714783,6.18121569,2419.6,2419.5,12.8066688]
[1726376715369,3.48041748,2419.6,2419.5,12.8066688]
[1726376715564,6.18121569,2419.6,2419.5,12.3935088]
[1726376717264,3.48041748,2419.6,2419.5,12.3935088]
[1726376717462,6.18121569,2419.6,2419.5,12.3935088]
[1726376717666,6.18121569,2419.6,2419.5,8.09088646]
[1726376717971,3.48041748,2419.6,2419.5,9.5002081]
[1726376718174,6.18121569,2419.6,2419.5,11.36011421]
[1726376718470,6.18121569,2419.6,2419.5,12.39340176]
[1726376721177,6.18121569,2419.6,2419.5,6.36244131]
[1726376721382,6.18121569,2419.6,2419.5,9.50021318]
[1726376721567,6.18121569,2419.6,2419.5,9.50020798]
[1726376721768,6.18121569,2419.6,2419.5,10.0168524]
[1726376721968,6.18121569,2419.6,2419.5,12.39341673]
[1726376722168,3.48041748,2419.6,2419.5,14.0017192]
[1726376723082,3.48041748,2419.6,2419.5,16.7963592]
[1726376724580,3.48041748,2419.6,2419.5,14.14606594]
[1726376724783,3.48041748,2419.6,2419.5,12.70793758]
[1726376724984,3.48041748,2419.6,2419.5,16.79616033]
[1726376725672,3.48041748,2419.6,2419.5,15.99676033]
[1726376725877,6.18121569,2419.6,2419.5,14.8016619]
[1726376726682,6.18121569,2419.6,2419.5,15.1970619]
[1726376726878,3.48041748,2419.6,2419.5,15.1970619]
[1726376727081,3.48041748,2419.6,2419.5,16.39218096]
[1726376728489,3.48041748,2419.6,2419.5,16.80258096]
[1726376729580,3.48041748,2419.6,2419.5,16.80258457]
[1726376730180,6.18121569,2419.6,2419.5,12.3996619]
[1726376731685,6.18121569,2419.6,2419.5,12.39976207]
[1726376732387,6.18121569,2419.6,2419.5,12.39990015]
[1726376733485,6.18121569,2419.6,2419.5,12.39985339]
[1726376734991,6.18121569,2419.6,2419.5,9.50660909]
[1726376735187,6.18121569,2419.6,2419.5,12.39980922]
[1726376736288,5.78191569,2419.6,2419.5,17.21597151]
[1726376736493,3.08111748,2419.6,2419.5,17.24045454]
[1726376736688,3.08111748,2419.6,2419.5,15.61707682]
[1726376736895,3.08111748,2419.6,2419.5,17.24045454]
[1726376737590,3.08111748,2419.6,2419.5,15.61707682]
[1726376737893,3.08111748,2419.6,2419.5,16.70163601]
[1726376738092,3.08111748,2419.6,2419.5,17.21827088]
[1726376738294,3.08111748,2419.6,2419.5,14.32507876]
[1726376738592,3.08111748,2419.6,2419.5,16.70161035]
[1726376738787,3.08111748,2419.6,2419.5,17.21824206]
[1726376738995,3.08111748,2419.6,2419.5,17.21821588]
[1726376739295,3.08111748,2419.6,2419.5,17.24040102]
[1726376739594,3.08111748,2419.6,2419.5,15.6170233]
[1726376739797,3.08111748,2419.6,2419.5,14.05131924]
[1726376740491,3.08111748,2419.6,2419.5,12.96673908]
[1726376740684,3.08111748,2419.6,2419.5,12.47925552]
[1726376740896,3.08111748,2419.6,2419.5,14.64844283]
[1726376741193,3.08111748,2419.6,2419.5,13.74887076]
[1726376741495,3.08111748,2419.6,2419.5,16.70145722]
[1726376741700,3.08111748,2419.6,2419.5,18.30268168]
[1726376741996,3.08111748,2419.6,2419.5,18.30267574]
[1726376742292,3.08111748,2419.6,2419.5,17.88951574]
[1726376743287,3.08111748,2419.6,2419.5,17.88954802]
[1726376743486,3.08111748,2419.6,2419.5,17.88956952]
[1726376743686,3.08111748,2419.6,2419.5,16.82596728]
[1726376743893,3.08111748,2419.6,2419.5,15.7927305]
[1726376744297,5.78191569,2419.6,2419.5,15.7927305]
[1726376744684,3.08111748,2419.6,2419.5,12.11736571]
[1726376745097,3.08111748,2419.6,2419.5,13.20202757]
[1726376745293,3.08111748,2419.6,2419.5,13.20202943]
[1726376745495,5.78191569,2419.6,2419.5,13.20204675]
[1726376745696,6.18181569,2419.6,2419.5,13.20204675]
[1726376746196,5.78191569,2419.6,2419.5,13.61520675]
[1726376746789,5.78191569,2419.6,2419.5,13.61520685]
[1726376746994,5.78191569,2419.6,2419.5,13.20204685]
[1726376747600,5.78191569,2419.6,2419.5,13.68952842]
[1726376747798,5.78191569,2419.6,2419.5,13.20204685]
[1726376748104,5.78191569,2419.6,2419.5,13.68952593]
[1726376748401,5.78191569,2419.6,2419.5,13.68965189]
[1726376748798,5.78191569,2419.6,2419.5,18.71641742]
[1726376749592,5.78191569,2419.6,2419.5,17.63182671]
[1726376749802,5.78191569,2419.6,2419.5,18.14846569]
[1726376750106,5.78191569,2419.6,2419.5,18.14847828]
[1726376750302,5.78191569,2419.6,2419.5,17.63183886]
[1726376750800,5.78191569,2419.6,2419.5,17.6318326]
[1726376751198,5.78191569,2419.6,2419.5,16.54714557]
[1726376751588,3.08111748,2419.6,2419.5,18.17052329]
[1726376751801,5.78191569,2419.6,2419.5,18.14848053]
[1726376752197,5.78191569,2419.6,2419.5,17.63185403]
[1726376752799,5.78191569,2419.6,2419.5,18.17052329]
[1726376752800,3.08111748,2419.6,2419.5,18.17052329]
[1726376753303,3.08111748,2419.6,2419.5,18.17050071]
[1726376753895,3.08111748,2419.6,2419.5,16.54712299]
[1726376754395,5.78191569,2419.6,2419.5,16.54712299]
[1726376754595,3.08111748,2419.6,2419.5,18.17050071]
[1726376754793,2.70079821,2419.7,2419.5,13.14372714]
[1726376754997,0.3999,2419.8,2419.6,2.59928248]
[1726376755198,3.08111748,2419.7,2419.6,2.27466967]
[1726376755400,3.08111748,2419.7,2419.6,7.22080293]
[1726376755599,5.79089939,2419.7,2419.6,8.3054726]
[1726376755904,5.79088966,2419.7,2419.6,8.3054726]
[1726376756205,5.79088966,2419.7,2419.6,13.03531186]
[1726376757205,5.79090364,2419.7,2419.6,13.03531186]
[1726376757604,5.79090364,2419.7,2419.6,13.03529376]
[1726376758099,5.79090364,2419.7,2419.6,11.30690052]
[1726376758306,5.79090364,2419.7,2419.6,13.03529241]
[1726376758602,5.79090364,2419.7,2419.6,9.89761559]
[1726376758801,5.79090364,2419.7,2419.6,8.068109]
[1726376758997,5.79090364,2419.7,2419.6,10.142179]
[1726376759202,5.79090364,2419.7,2419.6,13.03527431]
[1726376759804,3.08111748,2419.7,2419.6,11.95060464]
[1726376760005,5.79064705,2419.7,2419.6,13.03527431]
[1726376761002,5.79064705,2419.7,2419.6,7.92631782]
[1726376761301,5.79064705,2419.7,2419.6,10.14213297]
[1726376761494,5.79064705,2419.7,2419.6,13.03516633]
[1726376761901,5.79064705,2419.7,2419.6,13.03515022]
[1726376763808,5.79064705,2419.7,2419.6,16.24295022]
[1726376764105,5.79064705,2419.7,2419.6,15.75548899]
[1726376764307,5.79064705,2419.7,2419.6,16.13947846]
[1726376764809,5.24874287,2419.7,2419.6,17.87331971]
[1726376765008,5.24874287,2419.7,2419.6,18.65323638]
[1726376765408,5.24874287,2419.7,2419.6,17.87331971]
[1726376765708,5.24874287,2419.7,2419.6,18.65321996]
[1726376766202,5.24874287,2419.7,2419.6,17.46017971]
[1726376767519,5.24874287,2419.7,2419.6,11.94615018]
[1726376767811,5.24874287,2419.7,2419.6,15.49676889]
[1726376768006,5.24874287,2419.7,2419.6,17.04651657]
[1726376768308,2.16762539,2419.7,2419.6,17.87305086]
[1726376768507,2.16762539,2419.8,2419.7,0.41312]
[1726376768714,5.24874287,2419.8,2419.7,6.75320552]
[1726376768906,5.24874287,2419.8,2419.7,13.51821926]
[1726376769108,3.08111748,2419.8,2419.7,14.03480319]
[1726376770409,3.08111748,2419.8,2419.7,14.55136609]
[1726376770610,3.08111748,2419.8,2419.7,12.92707894]
[1726376770914,4.70584744,2419.8,2419.7,14.55045666]
[1726376771114,4.70584744,2419.8,2419.7,14.0337155]
[1726376771615,4.70584744,2419.8,2419.7,14.55028032]
[1726376772521,4.70584744,2419.8,2419.7,14.01034474]
[1726376772815,4.70584744,2419.8,2419.7,14.0103329]
[1726376773114,4.70584744,2419.8,2419.7,12.9269026]
[1726376773507,4.70584744,2419.8,2419.7,14.01023426]
[1726376774111,4.70584744,2419.8,2419.7,12.9269026]
[1726376774412,4.70584744,2419.8,2419.7,10.62992523]
[1726376774611,4.70584744,2419.8,2419.7,11.11734682]
[1726376775010,1.62472996,2419.8,2419.7,14.01008427]
[1726376775205,0.096,2419.9,2419.8,0.41311]
[1726376775206,1.17868936,2419.9,2419.8,0.41311]
[1726376775519,1.08268936,2419.9,2419.8,12.9751232]
[1726376775913,1.08268936,2419.9,2419.8,13.62082933]
[1726376776519,1.08268936,2419.9,2419.8,12.9751232]
[1726376776817,1.08268936,2419.9,2419.8,13.62082933]
[1726376777207,1.08268936,2419.9,2419.8,12.9751232]
[1726376777808,1.08268936,2419.9,2419.8,9.54537063]